bitfinex/quotes_SOLUSD_20250129
["timestamp","ask_amount","ask_price","bid_price","bid_amount"]
[1738157721582,1.50196,227.35,227.34,0.0378]
[1738157721796,1.50196,227.35,227.34,0.0314]
[1738157723289,22.37647,227.33,227.32,0.01160001]
[1738157723485,0.37647,227.3,227.29,0.43094711]
[1738157723721,13.15200741,227.3,227.29,0.43094711]
[1738157725912,13.15200741,227.3,227.29,0.13094711]
[1738157727091,13.27749741,227.3,227.29,0.13094711]
[1738157729088,13.15200741,227.3,227.29,0.13094711]
[1738157729409,0.37647,227.3,227.29,0.13094711]
[1738157730090,0.12549,227.3,227.29,0.13094711]
[1738157730294,12.77553741,227.34,227.29,0.13094711]
[1738157730487,12.77553741,227.38,227.29,12.90648452]
[1738157730806,12.77553741,227.38,227.31,12.77553741]
[1738157731193,0.25098,227.37,227.31,12.77553741]
[1738157731394,12.77553741,227.4,227.32,23.776884]
[1738157731706,12.77553741,227.42,227.35,12.77553741]
[1738157731907,82.5,227.43,227.35,12.77553741]
[1738157732108,82.5,227.43,227.37,12.77553741]
[1738157732706,82.5,227.43,227.38,23.776884]
[1738157733003,0.03,227.45,227.41,12.77553741]
[1738157733210,0.03,227.45,227.43,12.77553741]
[1738157733585,0.03,227.45,227.41,12.77553741]
[1738157734213,0.03,227.45,227.43,12.77553741]
[1738157735393,0.12549,227.44,227.37,1.5903]
[1738157735696,0.25098,227.39,227.34,0.063]
[1738157735909,0.12549,227.37,227.34,0.063]
[1738157736710,12.77553741,227.42,227.34,0.063]
[1738157736930,0.03,227.45,227.39,12.77553741]
[1738157737793,0.03,227.45,227.4,23.776884]
[1738157737993,0.03,227.45,227.43,12.77553741]
[1738157738211,0.03,227.45,227.41,12.77553741]
[1738157738517,0.03,227.45,227.41,23.776884]
[1738157738809,0.03,227.45,227.4,6.0815]
[1738157739211,0.03,227.45,227.41,23.776884]
[1738157739996,0.03,227.45,227.41,36.55242141]
[1738157740711,0.03,227.45,227.44,25.373884]
[1738157743804,0.03,227.45,227.44,1.597]
[1738157745605,0.03,227.45,227.42,23.776884]
[1738157747827,20.4558869,227.45,227.38,1.6086]
[1738157748338,20.4258869,227.43,227.38,21.6086]
[1738157748622,20.4258869,227.43,227.39,23.776884]
[1738157749616,20.4258869,227.43,227.38,21.6086]
[1738157750221,20.4558869,227.45,227.39,23.776884]
[1738157750517,0.03,227.45,227.39,44.2027709]
[1738157751016,20.4258869,227.43,227.38,1.6086]
[1738157751902,0.12549,227.42,227.38,1.6086]
[1738157752593,20.4258869,227.43,227.38,1.6086]
[1738157753818,0.03,227.45,227.34,0.063]
[1738157753819,0.12549,227.39,227.34,0.063]
[1738157753998,20.4258869,227.38,227.34,0.063]
[1738157754203,0.25098,227.42,227.34,0.063]
[1738157754204,0.25098,227.35,227.34,0.063]
[1738157755922,20.4258869,227.38,227.34,0.063]
[1738157756119,20.4258869,227.4,227.34,23.839884]
[1738157756816,0.25098,227.39,227.34,0.063]
[1738157759005,20.4258869,227.42,227.34,23.839884]
[1738157759405,0.25098,227.41,227.34,23.839884]
[1738157760805,0.12549,227.39,227.34,0.063]
[1738157761000,0.25098,227.39,227.34,0.063]
[1738157761209,0.25098,227.35,227.34,0.063]
[1738157762625,12.90589392,227.37,227.34,0.063]
[1738157762826,12.78040392,227.37,227.34,0.063]
[1738157764112,82.5,227.38,227.34,0.063]
[1738157764326,12.78040392,227.43,227.35,1.5089]
[1738157764621,12.78040392,227.43,227.36,23.776884]
[1738157764622,20.43737716,227.43,227.36,23.776884]
[1738157765012,0.12549,227.42,227.36,23.776884]
[1738157765413,0.12549,227.42,227.36,23.626884]
[1738157765723,20.43737716,227.43,227.35,21.94627716]
[1738157765932,0.12549,227.39,227.35,1.5089]
[1738157766230,20.43737716,227.38,227.35,1.5089]
[1738157766607,20.43737716,227.4,227.35,1.5089]
[1738157766810,20.43737716,227.42,227.35,1.5089]
[1738157767629,103.06286716,227.44,227.36,44.21426116]
[1738157767826,82.5,227.44,227.39,23.776884]
[1738157768507,82.5,227.44,227.36,44.21426116]
[1738157768702,102.93737716,227.44,227.36,44.21426116]
[1738157769125,82.5,227.44,227.36,44.21426116]
[1738157769516,82.5,227.44,227.39,23.776884]
[1738157769912,0.03,227.41,227.4,20.43737716]
[1738157770125,0.03,227.41,227.4,44.21426116]
[1738157771010,0.03,227.45,227.43,20.0]
[1738157771212,0.03,227.45,227.44,20.43737716]
[1738157771731,0.03,227.45,227.44,44.21426116]
[1738157772930,0.03,227.45,227.4,22.04457716]
[1738157773332,20.46737716,227.45,227.4,1.6072]
[1738157773527,20.43737716,227.41,227.34,1.713]
[1738157773835,20.43737716,227.43,227.37,23.776884]
[1738157774633,20.43737716,227.43,227.35,20.43737716]
[1738157774816,20.43737716,227.41,227.34,1.713]
[1738157775627,20.43737716,227.43,227.35,20.43737716]
[1738157775829,20.43737716,227.43,227.36,23.776884]
[1738157776335,20.43737716,227.41,227.35,23.776884]
[1738157777228,20.43737716,227.43,227.35,44.21426116]
[1738157777840,20.43737716,227.43,227.35,23.776884]
[1738157778030,20.71835716,227.45,227.37,20.43737716]
[1738157778233,0.03,227.45,227.4,23.776884]
[1738157778545,0.03,227.45,227.43,20.43737716]
[1738157778718,0.03,227.45,227.41,20.43737716]
[1738157778922,0.03,227.45,227.42,23.776884]
[1738157780542,0.03,227.45,227.39,20.43737716]
[1738157780718,20.46737716,227.45,227.38,23.776884]
[1738157780919,0.03,227.45,227.38,23.776884]
[1738157781221,0.03,227.45,227.42,23.776884]
[1738157781433,0.03,227.45,227.43,20.43737716]
[1738157782138,0.03,227.45,227.42,23.776884]
[1738157782441,0.03,227.45,227.44,23.776884]
[1738157783650,0.03,227.49,227.44,31.726684]
[1738157783823,0.03,227.49,227.48,64.65163832]
[1738157784450,0.03,227.49,227.48,69.04753832]
[1738157784745,0.03,227.49,227.48,48.61016116]
[1738157785145,0.03,227.49,227.48,69.29851832]
[1738157785329,0.03,227.51,227.5,43.776884]
[1738157785523,0.03,227.51,227.5,64.21426116]
[1738157787240,0.03,227.51,227.5,64.7792022]
[1738157787447,0.03,227.51,227.5,64.33975116]
[1738157788532,0.03,227.51,227.5,56.65217252]
[1738157788935,0.03,227.51,227.5,61.04777252]
[1738157789544,0.03,227.51,227.5,62.56088252]
[1738157789922,0.03,227.62,227.6,23.776884]
[1738157790130,0.03,227.62,227.51,6.52259]
[1738157790131,0.03,227.62,227.57,12.74979852]
[1738157790555,0.03,227.62,227.6,23.776884]
[1738157791253,0.03,227.62,227.61,36.52668252]
[1738157793254,0.03,227.62,227.59,12.74979852]
[1738157793438,0.03,227.62,227.57,12.74979852]
[1738157794458,0.03,227.62,227.61,56.52668252]
[1738157794961,0.03,227.62,227.61,58.08548252]
[1738157795252,0.03,227.62,227.61,62.47888252]
[1738157795458,0.03,227.62,227.61,58.08548252]
[1738157795873,0.03,227.62,227.61,45.335684]
[1738157796036,0.03,227.62,227.57,12.74979852]
[1738157797149,0.25098,227.61,227.53,12.74979852]
[1738157797573,12.90528852,227.62,227.53,12.74979852]
[1738157797574,12.77979852,227.62,227.53,12.74979852]
[1738157797860,0.03,227.62,227.57,12.74979852]
[1738157798468,0.03,227.62,227.59,12.74979852]
[1738157798644,0.03,227.62,227.6,20.39151965]
[1738157798849,0.03,227.62,227.58,20.39151965]
[1738157800447,0.03,227.62,227.56,20.39151965]
[1738157801055,251.045254,227.61,227.51,0.063]
[1738157801259,1.0,227.42,227.37,0.063]
[1738157801465,1.0,227.43,227.29,0.19394711]
[1738157801466,20.0,227.35,227.29,0.19394711]
[1738157801651,20.39151965,227.32,227.29,0.19394711]
[1738157802063,0.37647,227.31,227.29,0.19394711]
[1738157802384,20.76798965,227.3,227.29,0.19394711]
[1738157804451,20.89347965,227.3,227.29,0.19394711]
[1738157813555,0.12549,227.26,227.17,23.47083111]
[1738157813760,20.39151965,227.23,227.17,23.47083111]
[1738157813959,20.39151965,227.22,227.17,23.47083111]
[1738157814353,20.39151965,227.27,227.2,20.39151965]
[1738157814683,20.39151965,227.24,227.17,20.39151965]
[1738157815252,20.39151965,227.24,227.16,1.6244]
[1738157815253,20.39151965,227.25,227.18,20.39151965]
[1738157815453,20.39151965,227.27,227.2,20.39151965]
[1738157815666,8.20374344,227.35,227.2,20.39151965]
[1738157815667,20.39151965,227.28,227.2,20.39151965]
[1738157815888,20.39151965,227.27,227.2,23.776884]
[1738157816247,20.39151965,227.26,227.18,20.39151965]
[1738157816450,20.39151965,227.23,227.16,22.01591965]
[1738157816651,20.39151965,227.23,227.16,1.6244]
[1738157816851,20.39151965,227.22,227.16,1.6244]
[1738157817266,20.39151965,227.2,227.16,1.6244]
[1738157818177,20.39151965,227.21,227.16,1.6244]
[1738157818559,20.39151965,227.2,227.14,0.063]
[1738157818761,20.39151965,227.19,227.14,0.063]
[1738157818961,20.39151965,227.2,227.14,0.063]
[1738157819469,20.39151965,227.19,227.14,0.063]
[1738157819687,20.39151965,227.2,227.14,0.063]
[1738157820176,20.39151965,227.21,227.14,0.063]
[1738157820495,0.25098,227.24,227.17,23.776884]
[1738157820496,20.64249965,227.24,227.17,23.776884]
[1738157820986,20.39151965,227.22,227.15,23.776884]
[1738157821791,82.5,227.25,227.19,23.776884]
[1738157821990,82.5,227.25,227.21,20.39151965]
[1738157822166,82.5,227.25,227.19,44.16840365]
[1738157822486,82.5,227.25,227.15,4.4023]
[1738157822487,82.5,227.25,227.18,23.776884]
[1738157822975,82.5,227.25,227.24,23.776884]
[1738157823176,20.39151965,227.32,227.24,23.776884]
[1738157824392,20.64249965,227.34,227.26,23.776884]
[1738157824565,20.39151965,227.34,227.27,20.39151965]
[1738157824772,82.5,227.36,227.28,23.776884]
[1738157824773,102.89151965,227.36,227.28,23.776884]
[1738157825163,20.39151965,227.34,227.28,23.776884]
[1738157825386,20.39151965,227.34,227.26,23.776884]
[1738157825567,20.39151965,227.32,227.26,23.776884]
[1738157825971,82.5,227.36,227.26,23.776884]
[1738157825972,20.39151965,227.34,227.26,23.776884]
[1738157827210,20.39151965,227.32,227.23,20.39151965]
[1738157827659,20.39151965,227.32,227.24,23.776884]
[1738157827865,20.39151965,227.32,227.25,20.39151965]
[1738157828568,20.39151965,227.34,227.25,20.39151965]
[1738157829275,20.39151965,227.32,227.25,20.39151965]
[1738157829586,20.39151965,227.32,227.24,23.776884]
[1738157829988,20.39151965,227.32,227.26,0.063]
[1738157831879,20.39151965,227.3,227.26,0.063]
[1738157832085,0.03,227.34,227.26,0.063]
[1738157832086,20.39151965,227.32,227.26,0.063]
[1738157832283,20.42151965,227.34,227.26,23.839884]
[1738157832594,0.03,227.34,227.3,23.776884]
[1738157834282,0.03,227.34,227.32,23.776884]
[1738157834490,0.03,227.34,227.33,50.83370365]
[1738157835383,0.03,227.34,227.33,30.442184]
[1738157839787,0.03,227.34,227.33,50.83370365]
[1738157840382,0.03,227.34,227.33,30.442184]
[1738157842602,0.03,227.34,227.33,43.21755408]
[1738157844400,0.03,227.34,227.33,43.34304408]
[1738157844704,95.27537008,227.45,227.35,0.12549]
[1738157844890,95.27537008,227.45,227.37,12.77537008]
[1738157847206,95.27537008,227.45,227.35,12.77537008]
[1738157847396,12.77537008,227.43,227.35,12.77537008]
[1738157848197,95.27537008,227.45,227.38,23.776884]
[1738157852787,12.77537008,227.49,227.4,23.776884]
[1738157853517,12.77537008,227.49,227.42,23.776884]
[1738157853822,12.77537008,227.51,227.42,23.776884]
[1738157854195,12.77537008,227.51,227.43,12.77537008]
[1738157854487,12.77537008,227.47,227.39,14.40857008]
[1738157854905,12.77537008,227.47,227.4,23.776884]
[1738157855511,12.80537008,227.49,227.4,23.776884]
[1738157855913,12.80537008,227.49,227.42,23.776884]
[1738157858606,12.80537008,227.49,227.41,12.77537008]
[1738157858607,0.03,227.49,227.44,6.4601]
[1738157859014,0.03,227.49,227.45,23.776884]
[1738157859725,0.03,227.49,227.44,6.4601]
[1738157860017,12.80537008,227.49,227.42,23.776884]
[1738157860727,0.03,227.49,227.42,23.776884]
[1738157860900,0.03,227.49,227.44,23.776884]
[1738157861219,0.03,227.49,227.45,12.77537008]
[1738157862406,0.03,227.49,227.45,13.21488914]
[1738157862613,0.03,227.49,227.46,23.776884]
[1738157862800,0.03,227.49,227.48,32.043364]
[1738157863122,0.03,227.55,227.49,0.12549]
[1738157863307,0.03,227.55,227.51,12.77537008]
[1738157864722,0.03,227.55,227.52,23.776884]
[1738157865822,0.03,227.55,227.54,23.776884]
[1738157867323,0.03,227.55,227.54,24.3417338]
[1738157867526,0.03,227.55,227.54,24.4672238]
[1738157868118,0.03,227.57,227.56,24.027864]
[1738157868303,0.03,227.62,227.57,6.3587]
[1738157868514,0.03,227.62,227.61,56.55225408]
[1738157868907,0.03,227.62,227.61,56.80323408]
[1738157869817,0.03,227.62,227.61,56.55225408]
[1738157870610,0.03,227.62,227.61,56.67774408]
[1738157871323,0.03,227.62,227.61,56.92872408]
[1738157871824,0.03,227.63,227.62,56.787054]
[1738157872028,0.03,227.63,227.62,57.22615031]
[1738157872207,0.12,227.69,227.67,20.0]
[1738157872405,0.12,227.69,227.68,36.55225408]
[1738157875346,12.77537008,227.77,227.69,8.0838]
[1738157875517,12.77537008,227.93,227.81,0.12549]
[1738157875834,12.77537008,227.94,227.86,36.55225408]
[1738157876534,82.5,227.98,227.86,36.55225408]
[1738157876535,95.27537008,227.98,227.9,12.77537008]
[1738157876703,12.77537008,228.0,227.93,23.776884]
[1738157877209,20.89448175,228.04,227.9,12.77537008]
[1738157877210,12.77537008,227.97,227.9,12.77537008]
[1738157877409,12.77537008,227.93,227.86,12.77537008]
[1738157877632,12.77537008,227.91,227.84,1.5385]
[1738157877811,12.77537008,227.9,227.84,1.5385]
[1738157878011,12.77537008,227.87,227.84,1.5385]
[1738157878206,12.77537008,227.9,227.85,23.776884]
[1738157879119,12.77537008,227.93,227.86,12.77537008]
[1738157879322,12.77537008,227.95,227.89,23.776884]
[1738157879525,12.77537008,227.98,227.92,23.776884]
[1738157879835,12.77537008,228.0,227.94,23.776884]
[1738157880010,12.77537008,227.96,227.89,12.77537008]
[1738157880525,12.77537008,227.95,227.87,12.77537008]
[1738157880738,12.77537008,227.95,227.88,12.77537008]
[1738157881112,12.77537008,227.96,227.89,23.776884]
[1738157881306,12.77537008,228.02,227.94,12.77537008]
[1738157881713,12.77537008,228.03,227.96,23.776884]
[1738157882029,12.77537008,228.03,227.96,12.77537008]
[1738157882407,12.77537008,228.03,227.96,23.776884]
[1738157882820,0.12549,228.07,227.98,23.776884]
[1738157882821,12.77537008,228.04,227.98,23.776884]
[1738157883019,12.77537008,228.04,227.99,4.3861]
[1738157884321,12.77537008,228.03,227.99,4.3861]
[1738157885326,12.77537008,228.04,227.99,4.3861]
[1738157886136,12.77537008,228.03,227.97,4.3865]
[1738157886336,12.77537008,227.99,227.96,5.9396]
[1738157886520,12.77537008,227.97,227.91,1.5084]
[1738157886729,12.77537008,227.94,227.91,1.5084]
[1738157886909,12.77537008,227.94,227.88,4.3882]
[1738157887116,12.77537008,227.97,227.9,12.77537008]
[1738157887314,12.77537008,227.91,227.8,4.3897]
[1738157887527,12.77537008,227.85,227.76,12.77537008]
[1738157887723,12.77537008,227.83,227.76,12.77537008]
[1738157887922,12.77537008,227.83,227.77,23.776884]
[1738157888118,12.77537008,227.85,227.76,12.77537008]
[1738157888430,12.77537008,227.85,227.77,4.3903]
[1738157888630,20.36075525,227.85,227.78,23.776884]
[1738157888948,20.36075525,227.85,227.77,24.75105525]
[1738157889126,20.36075525,227.85,227.78,4.39]
[1738157890744,20.36075525,227.89,227.82,23.776884]
[1738157891942,20.36075525,227.89,227.84,23.776884]
[1738157892720,20.36075525,227.89,227.82,23.776884]
[1738157892931,0.12549,227.92,227.84,23.776884]
[1738157893450,20.48624525,227.95,227.87,20.36075525]
[1738157893754,1.0,228.02,227.82,4.3892]
[1738157893755,20.36075525,227.97,227.9,23.776884]
[1738157895649,0.25098,227.94,227.87,20.36075525]
[1738157895939,20.36075525,227.91,227.84,1.5675]
[1738157896117,20.36075525,227.91,227.85,23.776884]
[1738157896315,20.36075525,227.93,227.85,23.776884]
[1738157896919,20.36075525,227.95,227.88,23.776884]
[1738157897526,20.36075525,227.97,227.88,23.776884]
[1738157897725,20.36075525,227.97,227.9,23.776884]
[1738157898149,20.36075525,227.99,227.93,20.0]
[1738157898437,20.36075525,227.99,227.91,28.15435525]
[1738157898438,0.2,228.06,227.98,20.36075525]
[1738157898636,20.36075525,228.05,227.99,23.776884]
[1738157899054,20.36075525,228.05,227.96,20.36075525]
[1738157899336,20.36075525,228.03,227.94,20.36075525]
[1738157899540,20.36075525,228.01,227.91,28.15435525]
[1738157899743,20.36075525,228.01,227.92,23.776884]
[1738157900518,20.36075525,227.99,227.92,23.776884]
[1738157901351,20.36075525,228.01,227.94,23.776884]
[1738157902522,20.36075525,228.03,227.96,23.776884]
[1738157903353,20.36075525,228.01,227.93,20.36075525]
[1738157904743,20.36075525,228.01,227.94,23.776884]
[1738157905041,20.36075525,228.03,227.95,20.36075525]
[1738157905249,0.03,228.04,227.97,20.36075525]
[1738157905644,0.15549,228.04,227.97,20.36075525]
[1738157906145,20.61173525,228.03,227.95,20.36075525]
[1738157906331,20.61173525,228.03,227.91,5.9295]
[1738157906332,20.36075525,228.01,227.93,20.36075525]
[1738157906745,20.36075525,227.99,227.91,21.90265525]
[1738157907342,20.36075525,227.99,227.92,23.776884]
[1738157907523,20.36075525,227.99,227.93,20.36075525]
[1738157908331,20.36075525,228.01,227.93,20.36075525]
[1738157909657,20.39075525,228.04,227.96,20.36075525]
[1738157910340,0.03,228.04,227.99,20.36075525]
[1738157910547,0.03,228.04,228.02,12.69915118]
[1738157911234,0.03,228.04,228.01,12.69915118]
[1738157911428,0.03,228.04,228.02,12.69915118]
[1738157912339,0.03,228.04,228.03,12.69915118]
[1738157912641,0.03,228.04,228.02,12.69915118]
[1738157913271,0.03,228.04,228.03,12.69915118]
[1738157913644,0.03,228.04,228.02,12.69915118]
[1738157916168,0.03,228.04,228.01,12.69915118]
[1738157916555,0.03,228.04,228.02,12.69915118]
[1738157916766,0.03,228.04,228.03,12.69915118]
[1738157919079,0.03,228.04,228.02,12.69915118]
[1738157919252,0.03,228.04,228.03,38.02113518]
[1738157920271,0.03,228.04,228.03,14.24425118]
[1738157921346,0.03,228.04,228.03,18.62955118]
[1738157921760,0.03,228.04,228.03,55.10558636]
[1738157923055,0.2,228.06,228.05,20.0]
[1738157923251,0.2,228.06,228.05,56.47603518]
[1738157923457,12.69915118,228.21,228.07,0.12549]
[1738157923662,12.69915118,228.22,228.15,12.69915118]
[1738157925156,12.69915118,228.23,228.16,14.34295118]
[1738157925474,12.19915118,228.23,228.16,14.34295118]
[1738157925880,12.69915118,228.2,228.13,12.69915118]
[1738157926078,12.69915118,228.2,228.12,12.69915118]
[1738157926272,12.69915118,228.21,228.14,12.69915118]
[1738157926461,12.69915118,228.2,228.12,12.69915118]
[1738157927192,12.69915118,228.2,228.13,12.69915118]
[1738157927477,12.69915118,228.21,228.13,12.69915118]
[1738157928055,12.69915118,228.18,228.1,14.34295118]
[1738157928273,12.69915118,228.19,228.12,12.69915118]
[1738157928581,12.69915118,228.2,228.13,12.69915118]
[1738157930354,12.69915118,228.2,228.1,1.6438]
[1738157930555,12.69915118,228.18,228.11,12.69915118]
[1738157932684,12.69915118,228.13,228.1,1.7068]
[1738157932875,12.69915118,228.12,228.1,0.063]
[1738157933384,12.69915118,228.14,228.1,0.063]
[1738157933985,12.69915118,228.13,228.1,0.063]
[1738157934188,12.69915118,228.14,228.1,0.063]
[1738157934766,12.69915118,228.12,228.1,0.063]
[1738157934976,12.69915118,228.11,228.1,0.063]
[1738157935679,12.69915118,228.12,228.1,0.063]
[1738157938785,0.12549,228.11,228.1,0.063]
[1738157939575,12.82464118,228.11,228.1,0.063]
[1738157939892,12.69915118,228.11,228.1,0.063]
[1738157940988,12.82464118,228.11,228.1,0.063]
[1738157941898,13.07562118,228.11,228.1,0.063]
[1738157942912,15.20111118,228.11,228.1,0.063]
[1738157946180,0.37647,228.06,228.03,15.9237]
[1738157946493,0.12549,228.02,227.92,6.5506]
[1738157946814,12.69915118,227.97,227.91,1.6234]
[1738157946976,12.69915118,227.95,227.91,1.6234]
[1738157947693,12.69915118,227.96,227.91,1.6234]
[1738157948490,12.69915118,227.95,227.91,1.6234]
[1738157948994,12.69915118,227.95,227.86,4.3886]
[1738157948995,12.69915118,227.92,227.85,12.69915118]
[1738157949004,0.12549,227.96,227.83,1.5235]
[1738157949005,12.69915118,227.9,227.83,1.5235]
[1738157949302,0.12549,227.96,227.83,1.5235]
[1738157949303,12.69915118,227.89,227.83,1.5235]
[1738157949693,12.69915118,227.88,227.83,1.5235]
[1738157950379,12.69915118,227.87,227.83,1.5235]
[1738157950701,0.12549,227.91,227.83,1.5235]
[1738157950702,12.69915118,227.85,227.83,1.5235]
[1738157950897,12.69915118,227.85,227.8,6.1571]
[1738157951204,12.69915118,227.84,227.79,0.063]
[1738157951884,12.69915118,227.83,227.79,0.063]
[1738157952083,12.69915118,227.81,227.79,0.063]
[1738157952276,12.69915118,227.82,227.79,0.063]
[1738157952475,12.69915118,227.83,227.79,0.063]
[1738157952883,12.69915118,227.82,227.79,0.063]
[1738157953087,12.69915118,227.8,227.79,0.063]
[1738157953401,12.69915118,227.81,227.79,0.063]
[1738157954000,12.69915118,227.8,227.79,0.063]
[1738157954203,12.69915118,227.81,227.79,0.063]
[1738157955491,12.95013118,227.8,227.79,0.063]
[1738157956298,13.07562118,227.8,227.79,0.063]
[1738157956492,13.20111118,227.8,227.79,0.063]
[1738157958085,0.12549,227.76,227.68,53.7822]
[1738157958316,12.69915118,227.71,227.68,53.7822]
[1738157959189,12.69915118,227.72,227.68,53.7822]
[1738157960003,12.69915118,227.71,227.68,53.7822]
[1738157960229,12.69915118,227.7,227.68,53.7822]
[1738157960805,12.69915118,227.71,227.68,53.7822]
[1738157961515,12.69915118,227.72,227.68,53.7822]
[1738157963322,12.69915118,227.71,227.68,53.7822]
[1738157963695,12.69915118,227.72,227.68,53.7822]
[1738157964019,12.69915118,227.7,227.67,0.063]
[1738157964316,12.69915118,227.71,227.67,0.063]
[1738157965711,12.69915118,227.69,227.67,0.063]
[1738157968196,12.69915118,227.7,227.67,0.063]
[1738157968701,12.69915118,227.69,227.67,0.063]
[1738157969915,12.69915118,227.76,227.68,12.69915118]
[1738157970128,12.69915118,227.78,227.72,12.69915118]
[1738157970294,12.69915118,227.79,227.73,12.43915118]
[1738157970597,0.25098,227.84,227.73,12.69915118]
[1738157970802,12.69915118,227.8,227.73,12.69915118]
[1738157971406,12.69915118,227.81,227.75,12.69915118]
[1738157971807,12.69915118,227.82,227.75,12.69915118]
[1738157972001,12.69915118,227.83,227.76,12.69915118]
[1738157972204,0.12549,227.82,227.77,12.69915118]
[1738157972606,0.12549,227.82,227.76,12.69915118]
[1738157973002,12.69915118,227.83,227.76,12.69915118]
[1738157974219,12.69915118,227.83,227.76,23.776884]
[1738157974906,12.69915118,227.82,227.74,12.69915118]
[1738157975420,12.69915118,227.82,227.75,12.69915118]
[1738157975620,12.69915118,227.83,227.75,12.69915118]
[1738157976619,0.12549,227.82,227.76,12.69915118]
[1738157976925,12.69915118,227.83,227.75,23.776884]
[1738157976926,12.69915118,227.87,227.79,12.69915118]
[1738157977121,12.69915118,227.87,227.8,12.69915118]
[1738157977313,12.69915118,227.85,227.78,23.776884]
[1738157977626,12.95013118,227.84,227.76,12.69915118]
[1738157977808,12.69915118,227.82,227.75,18.79185118]
[1738157978001,12.69915118,227.82,227.75,6.0927]
[1738157978002,0.12549,227.81,227.75,6.0927]
[1738157978831,0.25098,227.81,227.75,6.0927]
[1738157979201,12.82464118,227.81,227.75,6.0927]
[1738157979407,0.12549,227.8,227.75,6.0927]
[1738157979609,12.69915118,227.84,227.77,12.69915118]
[1738157980115,0.25098,227.84,227.78,12.69915118]
[1738157980721,12.69915118,227.82,227.75,6.0927]
[1738157980926,0.12549,227.81,227.76,12.69915118]
[1738157981625,0.12549,227.82,227.76,12.69915118]
[1738157981932,0.12549,227.82,227.77,12.69915118]
[1738157982231,0.25098,227.83,227.77,12.69915118]
[1738157982610,12.95013118,227.83,227.76,12.69915118]
[1738157983020,0.25098,227.83,227.76,12.69915118]
[1738157984236,12.69915118,227.84,227.77,36.47603518]
[1738157984533,12.69915118,227.88,227.81,12.69915118]
[1738157984709,12.69915118,227.9,227.83,12.69915118]
[1738157984905,1.4398,227.99,227.77,4.82920762]
[1738157984906,12.69915118,227.91,227.84,12.69915118]
[1738157985110,0.25098,227.9,227.84,12.69915118]
[1738157985630,0.25098,227.9,227.83,12.69915118]
[1738157985936,12.95013118,227.9,227.82,14.26535118]
[1738157986112,12.69915118,227.89,227.82,14.26535118]
[1738157986429,12.69915118,227.88,227.82,1.5662]
[1738157988814,12.95013118,227.9,227.82,1.5662]
[1738157989213,12.69915118,227.88,227.82,1.5662]
[1738157989428,12.69915118,227.87,227.82,1.5662]
[1738157989622,12.69915118,227.85,227.78,12.69915118]
[1738157989829,0.12549,227.84,227.78,12.69915118]
[1738157990011,0.12549,227.84,227.77,1.5918]
[1738157990012,0.25098,227.84,227.77,1.5918]
[1738157992923,0.12549,227.82,227.77,1.5918]
[1738157997238,0.25098,227.82,227.77,1.5918]
[1738157998834,0.25098,227.82,227.74,12.69915118]
[1738157998835,12.95013118,227.82,227.74,12.69915118]
[1738158000145,12.95013118,227.82,227.73,23.839884]
[1738158000146,0.12549,227.8,227.73,23.839884]
[1738158000325,12.69915118,227.76,227.73,0.063]
[1738158002727,12.95013118,227.74,227.73,0.063]
[1738158003738,13.20111118,227.74,227.73,0.063]
[1738158005027,12.95013118,227.74,227.73,0.063]
[1738158005518,12.95013118,227.74,227.73,0.0003]
[1738158005519,13.20111118,227.74,227.73,0.0003]
[1738158009223,0.37647,227.7,227.67,0.063]
[1738158009423,12.82464118,227.68,227.67,0.063]
[1738158010235,12.95013118,227.68,227.67,0.063]
[1738158010749,8.40773149,227.68,227.67,0.063]
[1738158011246,8.65871149,227.68,227.67,0.063]
[1738158012244,8.53322149,227.68,227.67,0.063]
[1738158013949,8.65871149,227.68,227.67,0.063]
[1738158015946,8.53322149,227.68,227.67,0.063]
[1738158016733,8.65871149,227.68,227.67,0.063]
[1738158020655,8.53322149,227.68,227.67,0.063]
[1738158022429,8.03322149,227.68,227.67,0.063]